[Event "26th Abu Dhabi Master 2019"]
[Site "Abu Dhabi"]
[Date "2019.08.05"]
[Round "5.28"]
[White "Sadhwani, Raunak"]
[Black "Rathanvel, V S"]
[Result "0-1"]
[ECO "B90"]
[WhiteElo "2477"]
[BlackElo "2367"]
[Annotator "ChessBase"]
[PlyCount "100"]
[EventDate "2019.08.02"]
[EventType "swiss"]
[EventCountry "UAE"]
[SourceTitle "playchess.com"]
[Source "ChessBase"]
[SourceQuality "1"]
[TimeControl "5400+30"]

1. e4 {[%emt 0:00:00]} c5 {[%emt 0:00:00]} 2. Nf3 {[%emt 0:00:00]} d6 {[%emt 0:00:00]} 3. d4 {[%emt 0:00:00]} cxd4 {[%emt 0:00:00]} 4. Nxd4 {[%emt 0:00:00]} Nf6 {[%emt 0:00:06]} 5. Nc3 {[%emt 0:00:00]} a6 {[%emt 0:00:08]} 6. Nb3 {[%emt 0:00:00]} Nc6 {[%emt 0:04:25]} 7. Be3 {[%emt 0:00:30]} e6 {[%emt 0:07:13]} 8. g4 {[%emt 0:00:05]} Be7 {[%emt 0:11:32]} 9. g5 {[%emt 0:03:17]} Nd7 {[%emt 0:00:10]} 10. f4 {[%emt 0:08:19]} b5 {[%emt 0:15:43]} 11. Bg2 {[%emt 0:10:43]} Bb7 {[%emt 0:08:12]} 12. O-O {[%emt 0:01:58]} Nb6 {[%emt 0:08:51]} 13. f5 {[%emt 0:04:38]} Nc4 {[%emt 0:02:31]} 14. Bc1 {[%emt 0:03:42]} Qb6+ {[%emt 0:08:16]} 15. Kh1 {[%emt 0:00:06]} Ne3 {[%emt 0:01:11]} 16. Bxe3 {[%emt 0:00:16]} Qxe3 {[%emt 0:00:03]} 17. fxe6 {[%emt 0:10:06]} fxe6 {[%emt 0:00:08]} 18. Qg4 {[%emt 0:00:03]} b4 {[%emt 0:02:11]} 19. Nd1 {[%emt 0:00:56]} Qxg5 {[%emt 0:00:16]} 20. Qxe6 {[%emt 0:00:07]} Rc8 {[%emt 0:05:34]} 21. Qh3 {[%emt 0:04:45]} Bf6 {[%emt 0:13:29]} 22. e5 {[%emt 0:03:44]} Qxe5 {[%emt 0:01:53]} 23. Ne3 {[%emt 0:07:39]} O-O {[%emt 0:00:23]} 24. Rae1 {[%emt 0:00:58]} Rce8 {[%emt 0:01:06]} 25. Nc1 {[%emt 0:05:21]} Bc8 {[%emt 0:03:37]} 26. Qg3 {[%emt 0:03:02]} Qxg3 {[%emt 0:00:45]} 27. hxg3 {[%emt 0:00:01]} Nd4 {[%emt 0:00:51]} 28. Nd3 {[%emt 0:00:38]} a5 {[%emt 0:02:04]} 29. Nc4 {[%emt 0:01:01]} Rxe1 {[%emt 0:01:04]} 30. Rxe1 {[%emt 0:00:01]} Nxc2 {[%emt 0:02:09]} 31. Bd5+ {[%emt 0:00:01]} Kh8 {[%emt 0:00:09]} 32. Rc1 {[%emt 0:00:00]} Bf5 {[%emt 0:01:05]} 33. Rd1 {[%emt 0:03:22]} Be7 {[%emt 0:00:48]} 34. Nf2 {[%emt 0:01:56]} a4 {[%emt 0:00:23]} 35. Ne4 {[%emt 0:00:21]} Bg6 {[%emt 0:00:28]} 36. Kg1 {[%emt 0:04:15]} h6 {[%emt 0:00:18]} 37. Bb7 {[%emt 0:01:10]} Bf6 {[%emt 0:00:46]} 38. Nxf6 {[%emt 0:00:51]} Rxf6 {[%emt 0:00:01]} 39. Bd5 {[%emt 0:00:46]} Bh5 {[%emt 0:00:48]} 40. Rd2 {[%emt 0:01:13]} Ne1 {[%emt 0:00:07]} 41. Rf2 {[%emt 0:00:02]} Nd3 {[%emt 0:00:58]} 42. Rxf6 {[%emt 0:00:19]} gxf6 {[%emt 0:00:01]} 43. Kf1 {[%emt 0:01:32]} Kg7 {[%emt 0:00:29]} 44. a3 {[%emt 0:05:14]} Bf7 {[%emt 0:01:09]} 45. Bxf7 {[%emt 0:00:39]} Kxf7 {[%emt 0:00:05]} 46. axb4 {[%emt 0:00:33]} Nxb2 {[%emt 0:00:57]} 47. Na3 {[%emt 0:01:23]} Ke6 {[%emt 0:00:05]} 48. Ke2 {[%emt 0:00:10]} Kd5 {[%emt 0:00:28]} 49. b5 {[%emt 0:00:29]} Kc5 {[%emt 0:00:13]} 50. Kd2 {[%emt 0:00:02]} d5 {[%emt 0:00:13]} 0-1

[Event "26th Abu Dhabi Master 2019"]
[Site "Abu Dhabi"]
[Date "2019.08.05"]
[Round "5.32"]
[White "Divya Deshmukh"]
[Black "Venkatesh, M.R."]
[Result "0-1"]
[ECO "A04"]
[WhiteElo "2373"]
[BlackElo "2480"]
[Annotator "ChessBase"]
[PlyCount "46"]
[EventDate "2019.08.02"]
[EventType "swiss"]
[EventCountry "UAE"]
[SourceTitle "playchess.com"]
[Source "ChessBase"]
[SourceQuality "1"]
[TimeControl "5400+30"]

1. Nf3 {[%emt 0:00:18]} c5 {[%emt 0:00:25]} 2. b3 {[%emt 0:00:15]} d5 {[%emt 0:04:36]} 3. Bb2 {[%emt 0:03:05]} f6 {[%emt 0:00:18]} 4. e3 {[%emt 0:05:40]} e5 {[%emt 0:01:20]} 5. d4 {[%emt 0:09:27]} cxd4 {[%emt 0:06:27]} 6. exd4 {[%emt 0:03:40]} e4 {[%emt 0:00:11]} 7. Nfd2 {[%emt 0:02:26]} f5 {[%emt 0:00:40]} 8. g3 {[%emt 0:01:29]} Nf6 {[%emt 0:04:47]} 9. f4 {[%emt 0:03:47]} Nc6 {[%emt 0:04:15]} 10. Bh3 {[%emt 0:00:50]} Bd6 {[%emt 0:06:11]} 11. Nf1 {[%emt 0:00:47]} h5 {[%emt 0:05:04]} 12. Qe2 {[%emt 0:12:04]} Ng4 {[%emt 0:07:54]} 13. Bxg4 {[%emt 0:13:09]} hxg4 {[%emt 0:00:19]} 14. Ne3 {[%emt 0:00:20]} Be6 {[%emt 0:00:52]} 15. Nd2 {[%emt 0:01:20]} g5 {[%emt 0:00:45]} 16. Qf2 {[%emt 0:05:46]} gxf4 {[%emt 0:03:36]} 17. gxf4 {[%emt 0:00:07]} Qc7 {[%emt 0:00:15]} 18. Rf1 {[%emt 0:03:47]} Nb4 {[%emt 0:02:24]} 19. Rc1 {[%emt 0:14:01]} Nxa2 {[%emt 0:02:57]} 20. c4 {[%emt 0:01:19]} Nxc1 {[%emt 0:01:03]} 21. Bxc1 {[%emt 0:00:02]} Rh3 {[%emt 0:00:24]} 22. Ke2 {[%emt 0:00:29]} Qh7 {[%emt 0:00:42]} 23. Rh1 {[%emt 0:02:09]} g3 {[%emt 0:00:51]} 0-1

[Event "26th Abu Dhabi Master 2019"]
[Site "Abu Dhabi"]
[Date "2019.08.05"]
[Round "5.33"]
[White "Costachi, Mihnea"]
[Black "Mullick, Raahil"]
[Result "1/2-1/2"]
[ECO "D15"]
[WhiteElo "2471"]
[BlackElo "2211"]
[Annotator "ChessBase"]
[PlyCount "41"]
[EventDate "2019.08.02"]
[EventType "swiss"]
[EventCountry "UAE"]
[SourceTitle "playchess.com"]
[Source "ChessBase"]
[SourceQuality "1"]
[TimeControl "5400+30"]

1. d4 d5 2. c4 c6 3. Nf3 Nf6 4. Nc3 dxc4 5. e4 b5 6. Be2 e6 7. O-O Be7 8. a4 b4 9. e5 Nd5 10. Ne4 Ba6 11. Bd2 c5 12. Qc1 c3 13. Bxa6 Nxa6 14. bxc3 bxc3 15. Bxc3 Rc8 16. Qb2 O-O 17. dxc5 Nxc5 18. Nxc5 Bxc5 19. Bd4 Rb8 20. Qd2 Bb4 21. Qd3 1/2-1/2

[Event "26th Abu Dhabi Master 2019"]
[Site "Abu Dhabi"]
[Date "2019.08.05"]
[Round "5.39"]
[White "Laxman, R.R."]
[Black "Aaryan Varshney"]
[Result "1-0"]
[ECO "A46"]
[WhiteElo "2429"]
[BlackElo "2284"]
[Annotator "NA"]
[PlyCount "125"]
[EventDate "2019.08.02"]
[EventType "swiss"]
[EventCountry "UAE"]
[SourceTitle "playchess.com"]
[Source "ChessBase"]
[SourceQuality "1"]
[TimeControl "5400+30"]

1. d4 Nf6 2. Nf3 e6 3. c4 d5 4. g3 Bb4+ 5. Bd2 Be7 6. Bg2 O-O 7. O-O c6 8. Bf4 b6 9. Qc2 Nbd7 10. Rd1 Bb7 11. b3 Rc8 12. Nc3 c5 13. cxd5 cxd4 14. Nxd4 Nxd5 15. Bxd5 Bxd5 16. Qb2 Bb7 17. Ndb5 a6 18. Nd6 Bxd6 19. Rxd6 Qe7 20. Rad1 Bc6 21. Na4 Bxa4 22. bxa4 Nc5 23. Qb4 a5 24. Qd4 f6 25. Be3 e5 26. Qd5+ Kh8 27. Qc4 Rfd8 28. Bxc5 bxc5 29. Qxc5 Qf8 30. Rxd8 Rxd8 31. Rd5 h6 32. Qxa5 Ra8 33. Qd2 Qc8 34. a5 h5 35. h4 Kh7 36. Qd3+ Kh6 37. Kg2 Qc6 38. Qe3+ Kh7 39. Qe4+ Kh6 40. f3 Rb8 41. Rxe5 Qxe4 42. Rxe4 Rb2 43. a4 f5 44. Re5 Ra2 45. Re6+ g6 46. Re7 Rxa4 47. Ra7 Ra2 48. Kf2 Ra4 49. a6 Ra3 50. Ra8 Kg7 51. e4 fxe4 52. fxe4 Kf7 53. a7 Kg7 54. e5 Ra2+ 55. Ke3 Ra3+ 56. Kd4 Ra4+ 57. Kc5 Ra1 58. e6 Rc1+ 59. Kd4 Rd1+ 60. Kc3 Ra1 61. e7 Re1 62. e8=Q Rxe8 63. Rxe8 1-0

[Event "26th Abu Dhabi Master 2019"]
[Site "Abu Dhabi"]
[Date "2019.08.05"]
[Round "5.44"]
[White "Tashkhodzhaev, Akram"]
[Black "Ni, Shiqun"]
[Result "1/2-1/2"]
[ECO "B15"]
[WhiteElo "2123"]
[BlackElo "2407"]
[Annotator "NA"]
[PlyCount "71"]
[EventDate "2019.08.02"]
[EventType "swiss"]
[EventCountry "UAE"]
[SourceTitle "playchess.com"]
[Source "ChessBase"]
[SourceQuality "1"]
[TimeControl "5400+30"]

1. e4 c6 2. d4 d5 3. Nd2 dxe4 4. Nxe4 Nf6 5. Nxf6+ exf6 6. Bc4 Bd6 7. Qe2+ Qe7 8. Qxe7+ Kxe7 9. Ne2 Bf5 10. c3 Re8 11. Bf4 Bxf4 12. Nxf4 Kf8+ 13. Kd2 c5 14. dxc5 Nc6 15. Rae1 Ne5 16. Bb5 Rec8 17. c6 bxc6 18. Be2 Rcb8 19. Kc1 a5 20. Rd1 Rb6 21. f3 h6 22. Rd2 Ke7 23. Re1 g5 24. Bd3 Be6 25. Nxe6 fxe6 26. Bf1 h5 27. Re4 Ng6 28. Ra4 c5 29. Rc4 Rc8 30. Ra4 Ra8 31. Rc4 Rc8 32. Ra4 Ra8 33. Re4 Ne5 34. g3 f5 35. Red4 Ng6 36. Ra4 1/2-1/2

[Event "26th Abu Dhabi Master 2019"]
[Site "Abu Dhabi"]
[Date "2019.08.05"]
[Round "5.52"]
[White "Kushagra Mohan"]
[Black "Kulkarni, Rakesh"]
[Result "1/2-1/2"]
[ECO "B01"]
[WhiteElo "2250"]
[BlackElo "2360"]
[Annotator "NA"]
[PlyCount "36"]
[EventDate "2019.08.02"]
[EventType "swiss"]
[EventCountry "UAE"]
[SourceTitle "playchess.com"]
[Source "ChessBase"]
[SourceQuality "1"]
[TimeControl "5400+30"]

1. e4 d5 2. exd5 Qxd5 3. Nc3 Qd8 4. d4 Nf6 5. Nf3 g6 6. Be2 Bg7 7. O-O O-O 8. h3 Nc6 9. Bf4 b6 10. Qd2 Bb7 11. Rad1 Nb4 12. a3 Nbd5 13. Nxd5 Nxd5 14. Be5 e6 15. c4 Nf6 16. Rfe1 Qe7 17. Qe3 Rfd8 18. Bd3 Rac8 1/2-1/2

[Event "26th Abu Dhabi Master 2019"]
[Site "Abu Dhabi"]
[Date "2019.08.05"]
[Round "5.55"]
[White "Moksh Amit Doshi"]
[Black "Pujari, Rucha"]
[Result "1/2-1/2"]
[ECO "D37"]
[WhiteElo "2229"]
[BlackElo "2268"]
[Annotator "NA"]
[PlyCount "116"]
[EventDate "2019.08.02"]
[EventType "swiss"]
[EventCountry "UAE"]
[SourceTitle "playchess.com"]
[Source "ChessBase"]
[SourceQuality "1"]
[TimeControl "5400+30"]

1. d4 {[%emt 0:00:00]} d5 {[%emt 0:04:06]} 2. c4 {[%emt 0:00:10]} e6 {[%emt 0:00:29]} 3. Nf3 {[%emt 0:00:08]} Nf6 {[%emt 0:00:43]} 4. Nc3 {[%emt 0:00:09]} Be7 {[%emt 0:00:16]} 5. Bf4 {[%emt 0:00:08]} O-O {[%emt 0:00:40]} 6. e3 {[%emt 0:00:05]} Nbd7 {[%emt 0:01:03]} 7. Be2 {[%emt 0:00:10]} dxc4 {[%emt 0:05:15]} 8. O-O {[%emt 0:00:09]} a6 {[%emt 0:00:58]} 9. a4 {[%emt 0:00:08]} c5 {[%emt 0:06:54]} 10. d5 {[%emt 0:00:08]} exd5 {[%emt 0:01:07]} 11. Nxd5 {[%emt 0:00:09]} Nxd5 {[%emt 0:00:29]} 12. Qxd5 {[%emt 0:00:07]} Nf6 {[%emt 0:02:36]} 13. Qxd8 {[%emt 0:00:19]} Rxd8 {[%emt 0:00:02]} 14. Bc7 {[%emt 0:00:13]} Rd7 {[%emt 0:03:26]} 15. Ba5 {[%emt 0:03:10]} b6 {[%emt 0:08:14]} 16. Bxb6 {[%emt 0:00:59]} Rb7 {[%emt 0:01:25]} 17. a5 {[%emt 0:05:11]} Nd7 {[%emt 0:06:50]} 18. Bxc4 {[%emt 0:06:25]} Nxb6 {[%emt 0:00:10]} 19. axb6 {[%emt 0:00:06]} Rxb6 {[%emt 0:00:33]} 20. Ne5 {[%emt 0:00:58]} Rxb2 {[%emt 0:07:45]} 21. Bxf7+ {[%emt 0:05:19]} Kf8 {[%emt 0:00:16]} 22. Bc4 {[%emt 0:02:36]} a5 {[%emt 0:04:58]} 23. Rfc1 {[%emt 0:08:54]} a4 {[%emt 0:03:54]} 24. Ra3 {[%emt 0:06:40]} Bf5 {[%emt 0:09:31]} 25. Bd5 {[%emt 0:02:32]} Rab8 {[%emt 0:07:49]} 26. e4 {[%emt 0:02:01]} Rb1 {[%emt 0:05:02]} 27. Rf1 {[%emt 0:00:14]} Bf6 {[%emt 0:01:44]} 28. Nc6 {[%emt 0:07:49]} Rxf1+ {[%emt 0:02:38]} 29. Kxf1 {[%emt 0:00:04]} Rb1+ {[%emt 0:00:02]} 30. Ke2 {[%emt 0:00:09]} Rb2+ {[%emt 0:02:04]} 31. Kd3 {[%emt 0:00:31]} Bd7 {[%emt 0:01:09]} 32. f4 {[%emt 0:03:23]} Rb6 {[%emt 0:08:45]} 33. Na5 {[%emt 0:04:33]} Bd4 {[%emt 0:00:05]} 34. e5 {[%emt 0:01:19]} Ke7 {[%emt 0:01:27]} 35. g4 {[%emt 0:01:59]} Ra6 {[%emt 0:00:47]} 36. Nb7 {[%emt 0:01:23]} Bxg4 {[%emt 0:00:13]} 37. Ra2 {[%emt 0:03:07]} Bh3 {[%emt 0:01:59]} 38. Nd6 {[%emt 0:01:32]} g6 {[%emt 0:01:03]} 39. Bb7 {[%emt 0:00:43]} Rb6 {[%emt 0:01:29]} 40. Rxa4 {[%emt 0:02:30]} Bf1+ {[%emt 0:00:35]} 41. Kd2 {[%emt 0:00:39]} Rb2+ {[%emt 0:00:15]} 42. Kc1 {[%emt 0:00:49]} Rxh2 {[%emt 0:00:46]} 43. Bf3 {[%emt 0:03:12]} Rf2 {[%emt 0:01:19]} 44. Bd5 {[%emt 0:00:51]} Be3+ {[%emt 0:00:30]} 45. Kd1 {[%emt 0:00:12]} Rd2+ {[%emt 0:00:22]} 46. Ke1 {[%emt 0:00:05]} Rxd5 {[%emt 0:00:13]} 47. Kxf1 {[%emt 0:00:04]} Rd4 {[%emt 0:00:34]} 48. Ra7+ {[%emt 0:00:24]} Ke6 {[%emt 0:00:09]} 49. Rxh7 {[%emt 0:00:35]} Bxf4 {[%emt 0:00:10]} 50. Nb7 {[%emt 0:01:29]} c4 {[%emt 0:00:30]} 51. Rc7 {[%emt 0:00:36]} Bxe5 {[%emt 0:00:10]} 52. Rc6+ {[%emt 0:00:03]} Kf5 {[%emt 0:00:14]} 53. Na5 {[%emt 0:00:19]} c3 {[%emt 0:00:12]} 54. Rc5 {[%emt 0:00:53]} Ke4 {[%emt 0:00:56]} 55. Nc6 {[%emt 0:01:32]} Rd1+ {[%emt 0:00:11]} 56. Ke2 {[%emt 0:00:39]} Rd2+ {[%emt 0:00:09]} 57. Ke1 {[%emt 0:00:04]} Bg3+ {[%emt 0:00:29]} 58. Kf1 {[%emt 0:00:05]} c2 {[%emt 0:01:48]} 1/2-1/2

[Event "26th Abu Dhabi Master 2019"]
[Site "Abu Dhabi"]
[Date "2019.08.05"]
[Round "5.56"]
[White "Utsab Chatterjee"]
[Black "Kathmale, Sameer"]
[Result "0-1"]
[ECO "B19"]
[WhiteElo "2150"]
[BlackElo "2326"]
[Annotator "NA"]
[PlyCount "56"]
[EventDate "2019.08.02"]
[EventType "swiss"]
[EventCountry "UAE"]
[SourceTitle "playchess.com"]
[Source "ChessBase"]
[SourceQuality "1"]
[TimeControl "5400+30"]

1. e4 c6 2. d4 d5 3. Nc3 dxe4 4. Nxe4 Bf5 5. Ng3 Bg6 6. h4 h6 7. Nf3 Nd7 8. h5 Bh7 9. Bd3 Bxd3 10. Qxd3 e6 11. Bd2 Ngf6 12. O-O-O Be7 13. c4 b5 14. Ne4 bxc4 15. Nxf6+ Nxf6 16. Qxc4 Qd5 17. Qa4 O-O 18. Ne5 Rfc8 19. Be3 c5 20. Kb1 Rab8 21. Qc4 Qb7 22. Qe2 c4 23. Ka1 Nd5 24. Rb1 Nb4 25. Rbc1 Qa6 26. b3 cxb3 27. Qxa6 b2+ 28. Kxb2 Nc2+ 0-1

[Event "26th Abu Dhabi Master 2019"]
[Site "Abu Dhabi"]
[Date "2019.08.05"]
[Round "5.58"]
[White "Srijit Paul"]
[Black "Chitlange Sakshi"]
[Result "0-1"]
[ECO "A03"]
[WhiteElo "2298"]
[BlackElo "2168"]
[Annotator "NA"]
[PlyCount "74"]
[EventDate "2019.08.02"]
[EventType "swiss"]
[EventCountry "UAE"]
[SourceTitle "playchess.com"]
[Source "ChessBase"]
[SourceQuality "1"]
[TimeControl "5400+30"]

1. f4 {[%emt 0:00:00]} d5 {[%emt 0:00:21]} 2. Nf3 {[%emt 0:00:00]} g6 {[%emt 0:00:26]} 3. g3 {[%emt 0:00:00]} Bg7 {[%emt 0:00:14]} 4. Bg2 {[%emt 0:00:00]} c5 {[%emt 0:00:54]} 5. O-O {[%emt 0:00:06]} Nc6 {[%emt 0:00:50]} 6. d3 {[%emt 0:00:21]} Nf6 {[%emt 0:00:14]} 7. Nc3 {[%emt 0:01:10]} O-O {[%emt 0:02:34]} 8. Bd2 {[%emt 0:03:28]} d4 {[%emt 0:04:56]} 9. Na4 {[%emt 0:00:09]} Qd6 {[%emt 0:06:04]} 10. c4 {[%emt 0:03:41]} b6 {[%emt 0:07:35]} 11. a3 {[%emt 0:00:31]} Bb7 {[%emt 0:04:23]} 12. Rb1 {[%emt 0:02:36]} Rab8 {[%emt 0:09:46]} 13. b4 {[%emt 0:01:07]} Ba8 {[%emt 0:00:23]} 14. bxc5 {[%emt 0:09:41]} bxc5 {[%emt 0:00:02]} 15. Qc2 {[%emt 0:00:08]} Rfc8 {[%emt 0:10:23]} 16. Rb5 {[%emt 0:08:21]} Nd8 {[%emt 0:02:20]} 17. Rfb1 {[%emt 0:01:57]} Rxb5 {[%emt 0:02:49]} 18. Rxb5 {[%emt 0:00:18]} Nd7 {[%emt 0:02:12]} 19. Ng5 {[%emt 0:03:43]} Bxg2 {[%emt 0:01:58]} 20. Kxg2 {[%emt 0:00:02]} f5 {[%emt 0:02:18]} 21. e4 {[%emt 0:01:54]} Qc6 {[%emt 0:05:57]} 22. Nf3 {[%emt 0:01:43]} fxe4 {[%emt 0:01:17]} 23. dxe4 {[%emt 0:00:02]} a6 {[%emt 0:00:57]} 24. Rb1 {[%emt 0:02:49]} d3 {[%emt 0:00:18]} 25. Qd1 {[%emt 0:00:44]} Qxe4 {[%emt 0:00:06]} 26. Qe1 {[%emt 0:00:03]} Qxc4 {[%emt 0:02:16]} 27. Qxe7 {[%emt 0:00:14]} Qxa4 {[%emt 0:03:51]} 28. Qe8+ {[%emt 0:01:58]} Bf8 {[%emt 0:00:05]} 29. Bc3 {[%emt 0:01:07]} Qc2+ {[%emt 0:03:40]} 30. Kh3 {[%emt 0:01:12]} Qxb1 {[%emt 0:01:05]} 31. Qxd7 {[%emt 0:00:27]} Qb7 {[%emt 0:00:27]} 32. Qxd3 {[%emt 0:00:06]} c4 {[%emt 0:01:49]} 33. Qe3 {[%emt 0:00:07]} Qd7+ {[%emt 0:00:28]} 34. Kg2 {[%emt 0:00:07]} Bg7 {[%emt 0:00:22]} 35. Ne5 {[%emt 0:00:10]} Qd5+ {[%emt 0:00:25]} 36. Kh3 {[%emt 0:00:24]} Qe6+ {[%emt 0:00:27]} 37. g4 {[%emt 0:00:06]} Nf7 {[%emt 0:00:38]} 0-1

[Event "26th Abu Dhabi Master 2019"]
[Site "Abu Dhabi"]
[Date "2019.08.05"]
[Round "5.59"]
[White "Panesar Vedant"]
[Black "Gajwa Ankit"]
[Result "1/2-1/2"]
[ECO "D90"]
[WhiteElo "2092"]
[BlackElo "2302"]
[Annotator "NA"]
[PlyCount "39"]
[EventDate "2019.08.02"]
[EventType "swiss"]
[EventCountry "UAE"]
[SourceTitle "playchess.com"]
[Source "ChessBase"]
[SourceQuality "1"]
[TimeControl "5400+30"]

1. d4 Nf6 2. c4 g6 3. Nc3 d5 4. Nf3 Bg7 5. h4 O-O 6. cxd5 Nxd5 7. h5 c5 8. hxg6 hxg6 9. Bh6 Bxh6 10. Rxh6 Nxc3 11. bxc3 cxd4 12. Qd2 Kg7 13. cxd4 Nc6 14. Rh5 gxh5 15. Qg5+ Kh7 16. Qxh5+ Kg7 17. Qg5+ Kh7 18. Qh5+ Kg7 19. Qg5+ Kh7 20. Qh5+ 1/2-1/2

[Event "26th Abu Dhabi Master 2019"]
[Site "Abu Dhabi"]
[Date "2019.08.05"]
[Round "5.61"]
[White "Soham Kamotra"]
[Black "Bhambure, Shantanu"]
[Result "1/2-1/2"]
[ECO "A05"]
[WhiteElo "2136"]
[BlackElo "2275"]
[Annotator "NA"]
[PlyCount "77"]
[EventDate "2019.08.02"]
[EventType "swiss"]
[EventCountry "UAE"]
[SourceTitle "playchess.com"]
[Source "ChessBase"]
[SourceQuality "1"]
[TimeControl "5400+30"]

1. Nf3 {[%emt 0:00:00]} Nf6 {[%emt 0:00:00]} 2. c4 {[%emt 0:00:05]} e6 {[%emt 0:00:11]} 3. e3 {[%emt 0:00:07]} b6 {[%emt 0:01:29]} 4. g3 {[%emt 0:00:10]} Bb7 {[%emt 0:00:38]} 5. Bg2 {[%emt 0:00:05]} c5 {[%emt 0:01:44]} 6. O-O {[%emt 0:00:07]} Be7 {[%emt 0:01:11]} 7. b3 {[%emt 0:00:06]} O-O {[%emt 0:00:37]} 8. Bb2 {[%emt 0:00:07]} d5 {[%emt 0:03:10]} 9. Qe2 {[%emt 0:05:21]} Nc6 {[%emt 0:03:32]} 10. d3 {[%emt 0:00:35]} Qc7 {[%emt 0:06:56]} 11. Nc3 {[%emt 0:00:09]} Rad8 {[%emt 0:02:07]} 12. Rfd1 {[%emt 0:02:11]} Rfe8 {[%emt 0:06:54]} 13. Rac1 {[%emt 0:00:17]} Qb8 {[%emt 0:00:44]} 14. cxd5 {[%emt 0:11:24]} exd5 {[%emt 0:01:40]} 15. d4 {[%emt 0:00:09]} cxd4 {[%emt 0:14:12]} 16. Nxd4 {[%emt 0:00:24]} Nxd4 {[%emt 0:00:20]} 17. exd4 {[%emt 0:30:59]} Bf8 {[%emt 0:03:32]} 18. Qd3 {[%emt 0:00:59]} g6 {[%emt 0:09:12]} 19. Re1 {[%emt 0:00:46]} Bh6 {[%emt 0:03:42]} 20. Rcd1 {[%emt 0:00:19]} Rxe1+ {[%emt 0:03:29]} 21. Rxe1 {[%emt 0:00:01]} Re8 {[%emt 0:00:12]} 22. Re2 {[%emt 0:06:02]} Bg7 {[%emt 0:05:09]} 23. Bc1 {[%emt 0:06:27]} Qc8 {[%emt 0:05:50]} 24. Bd2 {[%emt 0:00:24]} Ne4 {[%emt 0:07:35]} 25. Nxd5 {[%emt 0:15:20]} Ba6 {[%emt 0:02:58]} 26. Qxe4 {[%emt 0:00:25]} Rxe4 {[%emt 0:01:52]} 27. Rxe4 {[%emt 0:00:44]} Qc2 {[%emt 0:09:41]} 28. Re8+ {[%emt 0:01:44]} Bf8 {[%emt 0:00:00]} 29. Bb4 {[%emt 0:00:01]} Qb1+ {[%emt 0:01:59]} 30. Re1 {[%emt 0:00:14]} Qf5 {[%emt 0:01:31]} 31. Re8 {[%emt 0:00:31]} Qb1+ {[%emt 0:00:23]} 32. Re1 {[%emt 0:00:03]} Qf5 {[%emt 0:00:04]} 33. g4 {[%emt 0:07:16]} Qc8 {[%emt 0:02:49]} 34. Nf6+ {[%emt 0:02:42]} Kg7 {[%emt 0:00:10]} 35. Ne8+ {[%emt 0:00:05]} Kg8 {[%emt 0:00:17]} 36. Nf6+ {[%emt 0:00:53]} Kg7 {[%emt 0:00:01]} 37. Ne8+ {[%emt 0:05:23]} Kg8 {[%emt 0:00:01]} 38. Nf6+ Kg7 39. Bxf8+ 1/2-1/2

[Event "26th Abu Dhabi Master 2019"]
[Site "Abu Dhabi"]
[Date "2019.08.05"]
[Round "5.64"]
[White "Priyanka Nutakki"]
[Black "Tabada, Jobannie C."]
[Result "1-0"]
[ECO "E97"]
[WhiteElo "2293"]
[BlackElo "2216"]
[Annotator "NA"]
[PlyCount "85"]
[EventDate "2019.08.02"]
[EventType "swiss"]
[EventCountry "UAE"]
[SourceTitle "playchess.com"]
[Source "ChessBase"]
[SourceQuality "1"]
[TimeControl "5400+30"]

1. c4 Nf6 2. Nc3 g6 3. e4 d6 4. d4 Bg7 5. Nf3 O-O 6. Be2 e5 7. O-O Nc6 8. dxe5 dxe5 9. Bg5 Qxd1 10. Rfxd1 h6 11. Be3 Bg4 12. h3 Bxf3 13. Bxf3 Rfd8 14. Nd5 Ne8 15. h4 Nd4 16. Bxd4 exd4 17. h5 c6 18. Nf4 g5 19. Nd3 Nf6 20. Re1 Re8 21. Nc5 g4 22. Bd1 Re5 23. Nd3 Rg5 24. e5 Nxh5 25. Re4 f5 26. Rxd4 Re8 27. Rd7 Bxe5 28. Rxb7 Bd4 29. Rd7 c5 30. Ba4 Re4 31. Bc6 g3 32. Bxe4 fxe4 33. Re1 Nf6 34. Rd8+ Kh7 35. Rxd4 cxd4 36. Nf4 gxf2+ 37. Kxf2 Ng4+ 38. Kg1 Ne3 39. Re2 Rg4 40. Nh3 d3 41. Rxe3 d2 42. Nf2 Rf4 43. Nd1 1-0

[Event "26th Abu Dhabi Master 2019"]
[Site "Abu Dhabi"]
[Date "2019.08.05"]
[Round "5.65"]
[White "Wang, Shanshan"]
[Black "Wagh Suyog"]
[Result "0-1"]
[ECO "B92"]
[WhiteElo "2122"]
[BlackElo "2242"]
[Annotator "NA"]
[PlyCount "76"]
[EventDate "2019.08.02"]
[EventType "swiss"]
[EventCountry "UAE"]
[SourceTitle "playchess.com"]
[Source "ChessBase"]
[SourceQuality "1"]
[TimeControl "5400+30"]

1. e4 {[%emt 0:02:34]} c5 {[%emt 0:00:00]} 2. Nf3 {[%emt 0:00:07]} d6 {[%emt 0:00:00]} 3. d4 {[%emt 0:00:08]} cxd4 {[%emt 0:00:01]} 4. Nxd4 {[%emt 0:00:05]} Nf6 {[%emt 0:00:05]} 5. Nc3 {[%emt 0:00:04]} a6 {[%emt 0:00:04]} 6. Be2 {[%emt 0:00:09]} e5 {[%emt 0:00:05]} 7. Nf3 {[%emt 0:00:10]} Be7 {[%emt 0:01:52]} 8. Bg5 {[%emt 0:00:55]} Nbd7 {[%emt 0:00:05]} 9. a4 {[%emt 0:00:42]} Qb6 {[%emt 0:00:06]} 10. Qc1 {[%emt 0:02:14]} h6 {[%emt 0:12:30]} 11. Be3 {[%emt 0:04:38]} Qc6 {[%emt 0:00:41]} 12. Nd2 {[%emt 0:00:50]} Nc5 {[%emt 0:11:53]} 13. b4 {[%emt 0:14:37]} Ncxe4 {[%emt 0:15:01]} 14. Ncxe4 {[%emt 0:01:33]} Nxe4 {[%emt 0:01:20]} 15. b5 {[%emt 0:00:37]} Qc3 {[%emt 0:00:30]} 16. Ra3 {[%emt 0:06:10]} Qa5 {[%emt 0:00:17]} 17. c3 {[%emt 0:04:34]} d5 {[%emt 0:03:27]} 18. Nxe4 {[%emt 0:03:30]} dxe4 {[%emt 0:02:15]} 19. Ra1 {[%emt 0:00:38]} O-O {[%emt 0:01:13]} 20. O-O {[%emt 0:00:27]} Be6 {[%emt 0:00:43]} 21. c4 {[%emt 0:04:34]} Rfc8 {[%emt 0:05:03]} 22. Qc2 {[%emt 0:01:43]} axb5 {[%emt 0:04:23]} 23. Qxe4 {[%emt 0:01:35]} bxa4 {[%emt 0:06:36]} 24. Qxb7 {[%emt 0:02:11]} Bc5 {[%emt 0:04:08]} 25. Bxc5 {[%emt 0:01:05]} Qxc5 {[%emt 0:00:23]} 26. Rfc1 {[%emt 0:03:08]} Ra7 {[%emt 0:08:08]} 27. Qb2 {[%emt 0:01:42]} a3 {[%emt 0:05:37]} 28. Qb3 {[%emt 0:00:18]} Rd8 {[%emt 0:00:59]} 29. Ra2 {[%emt 0:00:51]} Rd6 {[%emt 0:04:54]} 30. h3 {[%emt 0:00:48]} Rb6 {[%emt 0:01:13]} 31. Qc3 {[%emt 0:00:20]} Bf5 {[%emt 0:03:46]} 32. Bd3 {[%emt 0:03:23]} Rb2 {[%emt 0:01:38]} 33. Rc2 {[%emt 0:00:51]} Rb1+ {[%emt 0:00:58]} 34. Kh2 {[%emt 0:00:13]} e4 {[%emt 0:00:09]} 35. Be2 {[%emt 0:01:49]} Qxf2 {[%emt 0:00:48]} 36. Qe5 {[%emt 0:01:27]} Qg1+ {[%emt 0:01:21]} 37. Kg3 {[%emt 0:00:01]} Rb3+ {[%emt 0:00:12]} 38. Kh4 {[%emt 0:01:29]} Rxh3+ {[%emt 0:00:16]} 0-1